Cogmind - Beta 10.2 @@@ ROGUE MODE // 2021.05.28 @ 14:08:08 Player: Plexion Result: Destroyed by 7V-RTL with Dispersion Rifle Performance ------------- Evolutions (1) 500 Regions Visited (6) 1200 Robots Destroyed (64) 320 Value Destroyed (1335) 1335 Prototype IDs (29) 580 Alien Tech Used (0) 0 Bonus (206) 206 TOTAL SCORE: 4141 Bonus ------- Follower Combat Kills 56 Aligned with FarCom 300 Friendly Fire -150 Cogmind --------- Core Integrity 0/400 Matter 228/300 Energy 47/265 System Corruption 0% Temperature Cool (9) Movement Flying (200) Ox2 Location -8/Mines Parts ------- > --- POWER (1) -------- Reinforced Ion Engine > --- PROPULSION (2) --- Cesium-ion Thruster > --- UTILITY (4) ------ Large Storage Unit Large Storage Unit Gravity Neutralizing Apparatus Makeshift Armor Plating > --- WEAPON (2) ------- Axe Axe > --- INVENTORY (16) --- Light Ion Engine Improved Flight Unit Cesium-ion Thruster Experimental Heat Sink Medium Storage Unit Medium Storage Unit Advanced Core Analyzer Light Armor Plating EX Chip 1 EX Chip 1 System Purifier Improved Assault Rifle 8R-AWN's Boregun Axe Axe Peak State ------------ > --- POWER ------------ Light Ion Engine > --- PROPULSION ------- Light Treads Light Treads > --- UTILITY ---------- Experimental Heat Sink Humpback Gravity Neutralizing Apparatus > --- WEAPON ----------- AWS/Gauss > --- INVENTORY -------- Humpback Light Armor Plating Heavy Assault Rifle Shotgun Improved Assault Rifle Improved Assault Rifle Improved Assault Rifle Axe Axe Axe Axe [Rating: 36] Favorites ----------- Power Heavy Ion Engine Engine Heavy Ion Engine Power Core Light Neutrino Core Propulsion Light Treads Treads Light Treads Leg Aluminum Leg Wheel Compact Wheel Flight Unit Cesium-ion Thruster Utility Large Storage Unit Device Gravity Neutralizing Apparatus Storage Large Storage Unit Protection Light Armor Plating Weapon Improved Assault Rifle Energy Gun Beamcaster Ballistic Gun Improved Assault Rifle Launcher Grenade Launcher Special Weapon Plasma Cutter Slashing Weapon Axe Build | -11 -10 -10 -9 -9 -9 -8 ------- Run | Scr Mat Min Mat Min Exi Min Slots Evolved 2 | . . . 2 . . . Power . | . . . . . . . Propulsion . | . . . . . . . Utility 2 | . . . 2 . . . Weapon . | . . . . . . . Parts Attached 68 | 6 7 7 12 1 26 9 Power 8 | 1 . 2 1 . 2 2 Engine 7 | 1 . 2 1 . 1 2 Core 1 | . . . . . 1 . Reactor . | . . . . . . . Propulsion 15 | 2 . 3 4 . 3 3 Treads 8 | 2 . . 3 . 3 . Leg 2 | . . 1 1 . . . Wheel 2 | . . 2 . . . . Hover . | . . . . . . . Flight 3 | . . . . . . 3 Utility 23 | 1 3 . 4 1 13 1 Device 5 | . . . . . 4 1 Storage 11 | 1 2 . 1 1 6 . Processor . | . . . . . . . Hackware . | . . . . . . . Protection 7 | . 1 . 3 . 3 . Artifact . | . . . . . . . Weapon 22 | 2 4 2 3 . 8 3 Energy Gun 1 | . . . 1 . . . Energy Cannon . | . . . . . . . Ballistic Gun 14 | 2 2 1 2 . 6 1 Ballistic Cannon . | . . . . . . . Launcher 3 | . 2 1 . . . . Special Weapon 1 | . . . . . 1 . Impact Weapon . | . . . . . . . Slashing Weapon 3 | . . . . . 1 2 Piercing Weapon . | . . . . . . . Special Melee Weapon . | . . . . . . . Unidentified Prototypes 6 | . . . 2 . 4 . Parts Lost 24 | . . 7 5 . 5 7 Power 5 | . . 2 1 . 1 1 Propulsion 11 | . . 3 1 . 3 4 Utility 2 | . . . 2 . . . Weapon 6 | . . 2 1 . 1 2 Highest Loss Streak 5 | . . 2 3 . 3 5 Average Slot Usage (%) 86 | . 99 93 92 100 78 88 Engine 9 | . 14 13 6 11 7 6 Core 1 | . . . . . 3 2 Treads 18 | . 28 9 16 22 18 4 Wheel 1 | . . 12 3 . . . Storage 25 | . 18 28 28 38 25 26 Protection 6 | . 9 . 13 5 5 11 Ballistic Gun 19 | . 22 24 16 22 18 7 Launcher 1 | . 5 3 . . . . Naked Turns . | . . . . . . . Heaviest Build 178 | 12 41 40 57 62 178 52 Greatest Support 52 | 40 40 40 40 40 52 24 Greatest Overweight (x) 30 | . 1 2 2 1 30 2 Average Overweight (x) 1 | . . 1 1 1 2 1 Largest Inventory Capacity 44 | 6 16 16 20 24 44 20 Average Capacity 20 | 5 9 16 18 21 26 17 Most Carried 27 | 2 8 15 20 21 27 20 Average Carried 14 | 1 4 10 18 20 17 17 Final Capacity 24 | 6 16 16 20 24 20 16 Final Carried 21 | 2 8 15 20 21 20 15 Class Distribution -------------------- 66% | Hauler-Mutant 30% | Mutant Dominant Class ---------------- Mutant | -10/Materials Mutant | -10/Mines Hauler-Mutant | -9/Materials Hauler-Mutant | -9/Mines Hauler-Mutant | -9/Exiles Mutant | -8/Mines Resources | -11 -10 -10 -9 -9 -9 -8 ----------- Run | Scr Mat Min Mat Min Exi Min Matter Collected 1554 | 198 207 285 304 52 396 112 Remotely . | . . . . . . . Salvage Created 2427 | . 352 291 934 66 637 147 Parts 157 | . 28 14 48 8 56 3 Haulers Intercepted 2 | . . . 2 . . . Recyclers Shooed 2 | . . 1 1 . . . Parts Field Recycled . | . . . . . . . Retrieved Matter . | . . . . . . . Parts Self-Destructed . | . . . . . . . Prevented . | . . . . . . . Kills | -11 -10 -10 -9 -9 -9 -8 ------- Run | Scr Mat Min Mat Min Exi Min Combat Hostiles Destroyed 46 | . 12 7 14 4 6 3 Guns 36 | . 6 3 14 4 6 3 AOE 10 | . 6 4 . . . . Classes Destroyed 12 | . 3 2 3 . 3 1 Worker 5 | . 4 . 1 . . . Tunneler 1 | . . 1 . . . . Hauler 2 | . . . 2 . . . Recycler 3 | . . 1 2 . . . Turret 1 | . . . . . 1 . Swarmer 12 | . 6 2 . 4 . . Grunt 24 | . 6 5 11 . . 2 Brawler 1 | . . . . . . 1 Duelist 1 | . . . 1 . . . Sentry 2 | . . . 2 . . . Zionite 8 | . . . . . 8 . Assembled 5 | . . . . . 5 . Thug 1 | . . 1 . . . . Best Kill Streak 8 | . 4 3 5 3 8 1 Combat Bots Only 5 | . 3 2 4 3 5 1 Max Kills in Single Turn 2 | . 2 2 2 1 1 1 Gunslinging . | . . . . . . . Exploded 2 | . 2 1 . . . . Melee . | . . . . . . . Uniques/NPCs Destroyed 4 | . . . . . 4 . 8R-AWN (-9/Exiles) EX-DEC (-9/Exiles) EX-HEX (-9/Exiles) EX-BIN (-9/Exiles) Combat | -11 -10 -10 -9 -9 -9 -8 -------- Run | Scr Mat Min Mat Min Exi Min Damage Taken 3741 | . 470 444 560 75 1125 1067 Core 598 | . 65 118 47 . 237 131 Absorbed by Shields . | . . . . . . . Core Remaining (%) 63 | 100 . 26 . . . . Volleys Fired 154 | . 28 31 46 7 14 28 Largest 2 | . 2 2 2 2 2 2 Hottest 98 | . 40 40 98 46 46 46 Shots Fired 392 | . 51 53 91 14 140 43 Gun 377 | . 46 44 91 14 139 43 Cannon . | . . . . . . . Launcher 14 | . 5 9 . . . . Special 1 | . . . . . 1 . Kinetic 352 | . 46 44 66 14 139 43 Thermal 26 | . . . 25 . 1 . Explosive 14 | . 5 9 . . . . Electromagnetic . | . . . . . . . Robot Hit Streak 29 | . 13 12 23 15 29 10 Robot Miss Streak 6 | . 2 6 3 1 2 1 Penetration Max . | . . . . . . . Secondary Targets 4 | . 1 . 2 . . 1 Max Gunslinging Chain 1 | . 1 . 1 . . 1 Autonomous 114 | . . . . . 114 . Shots Hit Robots 298 | . 35 32 60 9 121 41 Core Hits 118 | . 26 20 25 4 33 10 Critical Hits 5 | . . 1 . . 3 1 Critical Kills 1 | . . . . . 1 . Critical Parts Destroyed 2 | . . 1 . . . 1 Melee Attacks 12 | . . . . . 6 6 Impact . | . . . . . . . Slashing 12 | . . . . . 6 6 Piercing . | . . . . . . . Sneak Attacks . | . . . . . . . Combat Hostiles . | . . . . . . . Follow-up Attacks 1 | . . . . . . 1 Damage Inflicted 7302 | . 736 859 1062 141 3754 750 Guns 5552 | . 365 330 1062 141 3138 516 Cannons . | . . . . . . . Explosions 932 | . 371 529 . . . 32 Melee 817 | . . . . . 615 202 Ramming . | . . . . . . . Kinetic 5110 | . 365 330 620 141 3138 516 Thermal 475 | . . . 442 . 1 32 Explosive 900 | . 371 529 . . . . Electromagnetic . | . . . . . . . Impact . | . . . . . . . Slashing 817 | . . . . . 615 202 Piercing . | . . . . . . . Highest Corruption 2 | . 2 2 . . . . Average Corruption 1 | . 1 2 . . . . Corruption Purged . | . . . . . . . Effects 18 | . 10 8 . . . . Message Errors 8 | . 4 4 . . . . Heat Flow Errors 6 | . 4 2 . . . . Data Loss (minor) 1 | . . 1 . . . . Targeting Errors 3 | . 2 1 . . . . Overload Shots . | . . . . . . . Overflow Damage 20 | . . 16 . . . 4 Projectiles . | . . . . . . . Explosions 20 | . . 16 . . . 4 Melee . | . . . . . . . Knockbacks . | . . . . . . . Impact . | . . . . . . . Kinetic . | . . . . . . . Secondary . | . . . . . . . Self-Inflicted Damage 135 | . 12 118 . . . 5 Shots 7 | . 1 5 . . . 1 Rammed . | . . . . . . . Targets Rammed . | . . . . . . . Kicked . | . . . . . . . Crushed . | . . . . . . . Highest Temperature 257 | . 205 226 216 . . 257 Average Temperature 92 | . 69 62 81 . . 147 Received Heat Transfer 1011 | . 192 135 216 . . 468 Effects 1 | . . . . . . 1 Energy Bleed 1 | . . . . . . 1 Siege Activations . | . . . . . . . Robots Corrupted . | . . . . . . . Combat Hostiles . | . . . . . . . Parts Fried . | . . . . . . . Impact Corruptions . | . . . . . . . Robots Melted . | . . . . . . . Combat Hostiles . | . . . . . . . Parts Melted . | . . . . . . . Heat Transferred 836 | . . . 777 . 9 50 Parts Sabotaged . | . . . . . . . Parts Stolen . | . . . . . . . Parts Stripped . | . . . . . . . Power Chain Reactions . | . . . . . . . Missiles Intercepted . | . . . . . . . Alert | -11 -10 -10 -9 -9 -9 -8 ------- Run | Scr Mat Min Mat Min Exi Min Peak Influence 328 | . 240 213 328 228 . 49 Initial 123 | . . 13 13 123 . . Average 138 | . 97 77 235 191 . 32 Maximum Alert Level 1 | . 1 1 1 1 . . Low Security (%) 69 | 100 97 87 31 33 . 100 Level 1 30 | . 2 12 68 66 . . Level 2 . | . . . . . . . Level 3 . | . . . . . . . Level 4 . | . . . . . . . Level 5 . | . . . . . . . High Security . | . . . . . . . Max Security . | . . . . . . . Squads Dispatched 5 | . 2 . 3 . . . Investigation 2 | . 1 . 1 . . . Extermination . | . . . . . . . Reinforcement 3 | . 1 . 2 . . . Assault . | . . . . . . . Garrison . | . . . . . . . Intercept . | . . . . . . . Construction Impeded . | . . . . . . . Haulers Reinforced . | . . . . . . . Stealth | -11 -10 -10 -9 -9 -9 -8 --------- Run | Scr Mat Min Mat Min Exi Min Distress Signals 3 | . 2 . 1 . . . Communications Jammed . | . . . . . . . Distress Signals . | . . . . . . . Times Spotted 90 | . 20 14 24 5 23 4 Peak Tracking Total 9 | . 5 3 4 4 9 4 Tactical Retreats 3 | . . . . 1 2 . Traps | -11 -10 -10 -9 -9 -9 -8 ------- Run | Scr Mat Min Mat Min Exi Min Traps Triggered 4 | . 3 . 1 . . . Indirectly . | . . . . . . . Trap Hack Attempts . | . . . . . . . Triggered . | . . . . . . . Disarmed . | . . . . . . . Reprogrammed . | . . . . . . . Reused 5 | . . . . . 5 . Traps Extracted . | . . . . . . . Installed 5 | . . . . . 5 . Triggered . | . . . . . . . Exploded 3 | . . . . . 3 . Machines | -11 -10 -10 -9 -9 -9 -8 ---------- Run | Scr Mat Min Mat Min Exi Min Machines Disabled 14 | . . . 2 . 11 1 Max in Single Turn 1 | . . . 1 . 1 1 Machines Sabotaged . | . . . . . . . Garrisons Compromised . | . . . . . . . Overloaded Fab Kills . | . . . . . . . Fab Network Shutdowns . | . . . . . . . Hacking | -11 -10 -10 -9 -9 -9 -8 --------- Run | Scr Mat Min Mat Min Exi Min Machines Accessed 3 | . . . 1 . 2 . Terminals 1 | . . . 1 . . . Fabricators . | . . . . . . . Repair Stations . | . . . . . . . Recycling Units . | . . . . . . . Scanalyzers . | . . . . . . . Garrison Access . | . . . . . . . Total Hacks 6 | . . . 4 . 2 . Successful 4 | . . . 2 . 2 . Failed 2 | . . . 2 . . . Catastrophic . | . . . . . . . Database Lockouts . | . . . . . . . Manual 5 | . . . 4 . 1 . Terminals 4 | . . . 4 . . . Fabricators . | . . . . . . . Repair Stations . | . . . . . . . Recycling Units . | . . . . . . . Scanalyzers . | . . . . . . . Garrison Access . | . . . . . . . Terminal Hacks 3 | . . . 1 . 2 . Record 1 | . . . . . 1 . Zone Layout 1 | . . . 1 . . . EX-Prototype ID Bank 1 | . . . . . 1 . Fabricator Hacks . | . . . . . . . Repair Station Hacks . | . . . . . . . Recycling Unit Hacks . | . . . . . . . Scanalyzer . | . . . . . . . Garrison Access Hacks . | . . . . . . . Unauthorized Hacks 1 | . . . 1 . . . Terminals 1 | . . . 1 . . . Track 1 | . . . 1 . . . Fabricators . | . . . . . . . Repair Stations . | . . . . . . . Recycling Units . | . . . . . . . Scanalyzers . | . . . . . . . Garrison Access . | . . . . . . . Data Cores Recovered . | . . . . . . . Used . | . . . . . . . Hacking Detections 1 | . . . 1 . . . Full Trace Events . | . . . . . . . Feedback Events . | . . . . . . . Feedback Blocked . | . . . . . . . Robot Schematics Acquired . | . . . . . . . Robots Built . | . . . . . . . Matter . | . . . . . . . Time . | . . . . . . . Total Robot Build Rating . | . . . . . . . Part Schematics Acquired . | . . . . . . . Parts Built . | . . . . . . . Matter . | . . . . . . . Time . | . . . . . . . Total Part Build Rating . | . . . . . . . Parts Repaired . | . . . . . . . Time . | . . . . . . . Parts Recycled . | . . . . . . . Recycled Matter . | . . . . . . . Retrieved Matter . | . . . . . . . Retrieved Components . | . . . . . . . Parts Scanalyzed . | . . . . . . . Part Schematics Acquired . | . . . . . . . Parts Damaged . | . . . . . . . Bothacking | -11 -10 -10 -9 -9 -9 -8 ------------ Run | Scr Mat Min Mat Min Exi Min Used RIF Installer . | . . . . . . . Robots Hacked . | . . . . . . . Non-combat . | . . . . . . . Combat . | . . . . . . . Robot Hacks Applied . | . . . . . . . Relay Couplers Released . | . . . . . . . Robots Rewired . | . . . . . . . Allies Hacked . | . . . . . . . Hacks Repelled . | . . . . . . . Allies | -11 -10 -10 -9 -9 -9 -8 -------- Run | Scr Mat Min Mat Min Exi Min Total Allies 2 | . . 2 . . . . Largest Group 2 | . . 2 . . . . Highest-Rated Group 38 | . . 38 . . . . Highest-Rated Ally 31 | . . 31 . . . . Total Orders . | . . . . . . . Ally Attacks 18 | . . 18 . . . . Total Damage 226 | . . 226 . . . . Kills 4 | . . 4 . . . . Allies Corrupted . | . . . . . . . Allies Melted . | . . . . . . . Intel | -11 -10 -10 -9 -9 -9 -8 ------- Run | Scr Mat Min Mat Min Exi Min Robot Analysis Total . | . . . . . . . Derelict Logs Recovered 2 | . . . . 2 . . Drone Launches . | . . . . . . . Drone Recoveries . | . . . . . . . Exploration | -11 -10 -10 -9 -9 -9 -8 ------------- Run | Scr Mat Min Mat Min Exi Min Turns Passed 5279 | 71 824 457 785 242 2741 159 Spaces Moved 2389 | 48 433 283 365 121 1116 23 Core 45 | 14 . . . . 30 1 Treads 1997 | 34 433 71 252 121 1086 . Legs . | . . . . . . . Wheels 325 | . . 212 113 . . . Hover . | . . . . . . . Flight 22 | . . . . . . 22 Fastest Speed 50 | 50 160 100 120 180 180 117 Average Speed 190 | 127 165 125 161 180 230 184 Slowest Speed 1550 | 160 180 180 200 180 1550 197 Overloaded Moves . | . . . . . . . Propulsion Burnouts . | . . . . . . . Robots Hopped . | . . . . . . . Cave-ins Triggered . | . . . . . . . Exploration Rate (%) 43 | 4 84 58 33 26 90 7 Regions Visited 6 Branch Regions 4 Pre-discovered Areas 2 | . . . . 1 1 . Known Exits Taken . | . . . . . . . Unknown Exits Taken 6 | 1 1 1 1 1 1 . Scrap Searched 2 | . . 1 . . . 1 Spaces Dug . | . . . . . . . Terrain Destroyed 155 | . 35 83 . . 33 4 Melee . | . . . . . . . Projectile 33 | . . . . . 33 . AOE 122 | . 35 83 . . . 4 Terrain Rammed . | . . . . . . . Walls Destroyed . | . . . . . . . Machines Disabled . | . . . . . . . Actions | -11 -10 -10 -9 -9 -9 -8 --------- Run | Scr Mat Min Mat Min Exi Min Total 2843 | 55 491 332 479 132 1267 87 Wait 90 | . 17 3 23 1 25 21 Move 2383 | 47 432 282 364 120 1115 23 Hop . | . . . . . . . Pick Up 68 | 2 5 9 20 2 30 . Fast Attach 29 | 6 2 3 6 . 12 . Attach 28 | . . 2 5 1 13 7 Detach 20 | . 1 . 1 . 17 1 Swap 11 | . 5 2 1 . 1 2 Drop 44 | . 1 . 13 1 29 . Fire 154 | . 28 31 46 7 14 28 Melee 11 | . . . . . 6 5 Ram . | . . . . . . . Kick . | . . . . . . . Crush . | . . . . . . . Escape Stasis . | . . . . . . . Rewire . | . . . . . . . Trap 5 | . . . . . 5 . Miscellaneous . | . . . . . . . Route ------- -11/Scrapyard -10/Materials (discovered 4 exits: *Mat x3 / [*Min]) -10/Mines (discovered 2 exits: *Mat x2) -9/Materials (discovered 2 exits: [*Min x2]) -9/Mines -9/Exiles -8/Mines (discovered 1 exit: [*Mat]) History --------- Turn | Location | Event 6 | -11/Scrapyard | Discovered new exit (range 16) 72 | -11/Scrapyard | Entered Materials 241 | -10/Materials | Discovered new exit (range 13) 301 | -10/Materials | Build established: Mutant 487 | -10/Materials | Discovered new exit (range 3) 599 | -10/Materials | Discovered new exit (range 15) 675 | -10/Materials | Discovered new exit (range 14) 896 | -10/Materials | Entered Mines 1076 | -10/Mines | Discovered new exit (range 6) 1140 | -10/Mines | Core integrity fell below 50% 1181 | -10/Mines | Found a hidden stash of uninstalled traps 1344 | -10/Mines | Discovered new exit (range 8) 1353 | -10/Mines | Entered Materials 1353 | -9/Materials | Evolved 2 slots: Utility x2 1574 | -9/Materials | Discovered new exit (range 14) 1623 | -9/Materials | Lost 3 parts (1n2u) 1963 | -9/Materials | Build established: Hauler-Mutant 2121 | -9/Materials | Discovered new exit (range 10) 2138 | -9/Materials | Entered Mines 2139 | -9/Mines | Learned location of Storage (-7) 2286 | -9/Mines | Learned 2 Materials zone layouts 2353 | -9/Mines | Deemed a non-threat by the Exiles lab entrance 2373 | -9/Mines | Discovered new exit (range 5) 2380 | -9/Mines | Entered Exiles 2425 | -9/Exiles | Met 8R-AWN 2454 | -9/Exiles | Met EX-HEX 2506 | -9/Exiles | Met EX-BIN 2528 | -9/Exiles | Met EX-DEC 2541 | -9/Exiles | Learned location of Zion (-7) 2729 | -9/Exiles | Aligned with FarCom system 2731 | -9/Exiles | Given EX-Vault access code 2776 | -9/Exiles | Opened EX-Vault 2786 | -9/Exiles | Found AWS/Gauss 2823 | -9/Exiles | Warned to stay clear of 0b10 Research branches 3255 | -9/Exiles | Discovered new exit (range 12) 3409 | -9/Exiles | Attacked by the Exiles 3555 | -9/Exiles | Destroyed 8R-AWN 3561 | -9/Exiles | Lost 3 parts (1p1n1w) 3622 | -9/Exiles | Core integrity fell below 50% 4162 | -9/Exiles | Destroyed EX-DEC 4200 | -9/Exiles | Destroyed EX-HEX 4281 | -9/Exiles | Destroyed EX-BIN 4308 | -9/Exiles | Found Prototype Device 4308 | -9/Exiles | Identified System Purifier 4556 | -9/Exiles | Found Prototype Ballistic Gun 5121 | -9/Exiles | Entered Mines 5160 | -8/Mines | Core integrity fell below 20% 5200 | -8/Mines | Lost 5 parts (1p2n2w) 5254 | -8/Mines | 7V-RTL came to Exiles' defense 5261 | -8/Mines | Discovered new exit (range 8) 5280 | -8/Mines | Destroyed by 7V-RTL with Dispersion Rifle Last Messages --------------- 05221_ U-05 Engineer lays Concrete. 05230_ Acquired 47 matter. 05232_ U-05 Engineer lays Concrete. 05254_ 7V-RTL: "I came as fast as I could... Wait, it was you!" 05255_ U-05 Engineer lays Concrete. 05258_ Cesium-ion Thruster destroyed. 05261_ EXIT=FOUND 05265_ Searching scrap... 05265_ Found Cesium-ion Thruster. 05265_ Found 32 Matter. 05266_ Acquired 32 matter. 05266_ Penetrated by Slug. 05269_ Slug penetrates R-06 Scavenger. 05274_ Penetrated by Slug. 05274_ Slug penetrates R-06 Scavenger. 05274_ R-06 Scavenger destroyed. 05275_ 7V-RTL Prototype Device severed. 05275_ Axe follow-up attack on 7V-RTL. 05277_ Penetrated by Slug. 05280_ Cesium-ion Thruster destroyed. Map ----- +----------------------------------------------------+ | ?????????????????????????????????????????????????? | | ?????????????????????????????????????????????????? | | ?????????????????????????????????????????????????? | | ?????????????????????????????????????????????????? | | ?????????????????????????????????????????????????? | | ?????????????????????????????????????????????????? | | ?????????????????????????????????????????????????? | | ?????????????????????????????????????????????????? | | ?????????????????????????????????????????????????? | | ?????????????????????????????????????????????????? | | ??????????????????????????? #???????????????????? | | ??????????????????????????? ???????????????????? | | ??????????????????????????? ???????????????????? | | ??????????????????????????? ???????????????????? | | ??????????????????????????? ???????????????????? | | ??????????????????????????? ??????????? ???????? | | ??????????????????????????? ??????????? ???????? | | ??????????????????????????? < ??????????# #??????? | | ??????????????????????????? ??????????# #??????? | | ??????????????????????????? ??????????# #??????? | | ??????????????????????????? #??????????# #??????? | | ???????????????????????????# "??????????# #??????? | | ???????????????????????????# #??????????# ####???? | | ????????????????????????#### #????????### """###?? | | ????????????????????# ##;## ########## #?? | | ????????????????????# Y@ = =|%*== #?? | | ????????????????????################### #?? | | ??????????????????????????????????????# #?? | | ??????????????????????????????????????# ##? | | ??????????????????????????????????????# % "#? | | ??????????????????????????????????????# [ ##? | | ??????????????????????????????????????# = #?? | | ??????????????????????????????????????# #?? | | ??????????????????????????????????????##########?? | | ?????????????????????????????????????????????????? | | ?????????????????????????????????????????????????? | | ?????????????????????????????????????????????????? | | ?????????????????????????????????????????????????? | | | | | | | | | | | | | | | | | | | | | | | | | +----------------------------------------------------+ Best States ------------- Heat Dissipation 54 Energy Generation 19 Energy Capacity 280 Matter Stores 300 Matter Capacity 300 Sight Range 16 Terrain Scan Density 10 Additional Mass Support 12 Armor Coverage 250 Weapon Shielding 33 Evasion (%) 40 Recoil Reduction 2 Item Schematics ----------------- None Robot Schematics ------------------ None Fabricated ------------ Nothing Alien Tech Used ----------------- None Achievements -------------- None Challenges ------------ None Game ------ Seed BombardmentMobileShield Manual? 0 Play Time 00:27:02 Cumulative 169.2 hours Start 2021.05.28 @ 13:43:18 End 2021.05.28 @ 14:08:08 Sessions 1 Manual Loads 0 Difficulty Rogue Special Mode None Game No. 218 Rogue 131 Adventurer 87 Explorer 0 Win Type - Total 4 Types 3/0/0/1/0/0/0/0/0 Lore% 63 Gallery% 72 Achievement% 60 Wizard Run 0 Options --------- ASCII 0 Keyboard 1 Movement Numpad Keybinds 0 Fullscreen 1 Font 18/Smallcaps Map View 76x50 Tactical HUD 1 Map Filters NONE Filters NONE Steam 1 RUN: 2ff4ff12-0ee0-440f-ac5a-1f988bd02701